Cogmind - Beta 16 @@@ ROGUE MODE // 2026.01.29 @ 22:28:36 Player: Ly0ko Result: Self-destructed Performance ------------- Evolutions (2) 1000 Regions Visited (4) 800 Robots Destroyed (26) 130 Value Destroyed (579) 579 Prototype IDs (1) 20 Alien Tech Used (0) 0 Bonus (0) 0 TOTAL SCORE: 2529 Bonus ------- None Cogmind --------- Core Integrity 275/550 Matter 210/300 Energy 265/265 System Corruption 0% Temperature Hot (214) Movement Flying (1880) Ox23 Location -8/Materials Parts ------- > --- POWER (2) -------- Reinforced Ion Engine > --- PROPULSION (4) --- Flight Unit > --- UTILITY (3) ------ Huge Storage Unit Advanced Targeting Computer Target Analyzer > --- WEAPON (2) ------- Enhanced Autogun > --- INVENTORY (25) --- Light Ion Engine Light Ion Engine Light Ion Engine ECM Suite Datajack Peak State ------------ > --- POWER ------------ Reinforced Ion Engine Light Nuclear Core > --- PROPULSION ------- Flight Unit Flight Unit Flight Unit Flight Unit > --- UTILITY ---------- Huge Storage Unit Advanced Targeting Computer Target Analyzer > --- WEAPON ----------- Enhanced Autogun Enhanced Autogun > --- INVENTORY -------- Ion Engine Light Ion Engine Light Ion Engine ECM Suite Datajack [Rating: 24] Favorites ----------- Power Ion Engine Engine Ion Engine Power Core Light Nuclear Core Propulsion Aluminum Leg Leg Aluminum Leg Flight Unit Flight Unit Utility Target Analyzer Storage Huge Storage Unit Processor Target Analyzer Weapon Enhanced Autogun Energy Gun EM Pulse Gun Ballistic Gun Enhanced Autogun Special Melee Weapon Datajack Build | -11 -10 -9 -9 -8 ------- Run | Yrd Mat Mat Min Mat Slots Evolved 4 | . . 2 . 2 Power 1 | . . . . 1 Propulsion 2 | . . 1 . 1 Utility 1 | . . 1 . . Weapon . | . . . . . Parts Attached 27 | 6 1 6 3 11 Power 5 | 1 . 1 1 2 Engine 4 | 1 . 1 1 1 Core 1 | . . . . 1 Reactor . | . . . . . Propulsion 9 | 2 . 1 . 6 Treads . | . . . . . Leg 3 | 2 . 1 . . Wheel . | . . . . . Hover . | . . . . . Flight 6 | . . . . 6 Utility 5 | 1 1 1 2 . Device . | . . . . . Storage 2 | 1 . . 1 . Processor 3 | . 1 1 1 . Hackware . | . . . . . Protection . | . . . . . Artifact . | . . . . . Weapon 8 | 2 . 3 . 3 Energy Gun 1 | 1 . . . . Energy Cannon . | . . . . . Ballistic Gun 6 | 1 . 3 . 2 Ballistic Cannon . | . . . . . Launcher . | . . . . . Special Weapon . | . . . . . Impact Weapon . | . . . . . Slashing Weapon . | . . . . . Piercing Weapon . | . . . . . Special Melee Weapon 1 | . . . . 1 Unidentified Prototypes 1 | . . 1 . . Parts Lost 7 | . . . . 7 Power 1 | . . . . 1 Propulsion 5 | . . . . 5 Utility . | . . . . . Weapon 1 | . . . . 1 Highest Loss Streak 6 | . . . . 6 To Critical Strikes . | . . . . . Average Backups 6 | 2 5 6 8 4 Power 1 | . 1 . 1 2 Propulsion 1 | . 2 1 3 . Utility . | . . . 1 1 Weapon 1 | 1 1 3 1 . Tool/Special . | . . . . . Unused Backups 9 | . . 2 4 3 Power 2 | . . . . 2 Propulsion 2 | . . 2 . . Utility 2 | . . . 1 1 Weapon 3 | . . . 3 . Tool/Special . | . . . . . Average Slot Usage (%) 96 | . 96 88 100 97 Engine 13 | . 14 11 11 17 Leg 19 | . 28 28 33 . Flight 12 | . . . . 34 Storage 10 | . 14 11 11 9 Processor 17 | . 11 15 22 18 Energy Gun 3 | . 14 7 . . Ballistic Gun 17 | . 14 14 22 17 Peak Build Rating 24 | 6 7 18 21 24 Average Rating 16 | 4 6 10 20 21 On Entrance 10 | . 6 7 18 21 Avg Prop Armor Cover (%) . | . . . . . Naked Turns . | . . . . . Heaviest Build 101 | 14 14 14 96 101 Greatest Support 30 | 20 20 30 30 16 Greatest Overweight (x) 8 | . . . 3 8 Average Overweight (x) 1 | . . . . 6 Largest Inventory Capacity 25 | 8 8 8 25 25 Average Capacity 16 | 6 8 8 16 25 Most Carried 10 | 5 6 8 10 10 Average Carried 6 | 2 5 6 8 4 Final Capacity 25 | 8 8 8 25 25 Final Carried 10 | 4 6 8 10 5 Class Distribution -------------------- 66% | Mutant 33% | Scavenger-Mutant Dominant Class ---------------- Mutant | -10/Materials Mutant | -9/Materials Mutant | -9/Mines Scavenger-Mutant | -8/Materials Resources | -11 -10 -9 -9 -8 ----------- Run | Yrd Mat Mat Min Mat Matter Collected 747 | 216 81 84 149 217 Remotely . | . . . . . Salvage Created 720 | . 87 158 164 311 Parts 62 | . 2 9 25 26 Haulers Intercepted . | . . . . . Recyclers Shooed . | . . . . . Parts Field Recycled . | . . . . . Retrieved Matter . | . . . . . Parts Self-Destructed . | . . . . . Prevented . | . . . . . Parts Restored . | . . . . . Kills | -11 -10 -9 -9 -8 ------- Run | Yrd Mat Mat Min Mat Combat Hostiles Destroyed 25 | . 2 4 11 8 Guns 22 | . 1 2 11 8 AOE 3 | . 1 2 . . Classes Destroyed 4 | . 1 . 1 2 Recycler 1 | . . . . 1 Swarmer 15 | . . . 11 4 Grunt 9 | . 2 4 . 3 Sentry 1 | . . . . 1 Best Kill Streak 5 | . 2 2 4 5 Combat Bots Only 4 | . 2 2 4 4 Max Kills in Single Turn 2 | . 1 2 2 2 Gunslinging 1 | . . . 1 . Exploded 2 | . 1 2 . . Melee . | . . . . . Uniques/NPCs Destroyed . | . . . . . Combat | -11 -10 -9 -9 -8 -------- Run | Yrd Mat Mat Min Mat Hostile Shots Fired 154 | . 28 13 36 77 Missed 45 | . 16 4 11 14 Hits 109 | . 12 9 25 63 Projectile 109 | . 12 9 25 63 Critical Strikes 5 | . . . 1 4 Damage Taken 1356 | . 138 99 245 874 Core 321 | . 12 12 22 275 Absorbed by Shields . | . . . . . Core Remaining (%) 95 | 100 95 . 91 . Volleys Fired 63 | . 9 9 17 28 Largest 2 | . 2 2 2 2 Hottest 60 | . 60 60 50 50 Shots Fired 125 | . 18 18 34 55 Gun 125 | . 18 18 34 55 Cannon . | . . . . . Launcher . | . . . . . Special . | . . . . . Kinetic 108 | . 9 10 34 55 Thermal . | . . . . . Explosive . | . . . . . Electromagnetic 17 | . 9 8 . . Robot Hit Streak 9 | . 6 5 6 9 Robot Miss Streak 4 | . 1 2 4 3 Penetration Max . | . . . . . Secondary Targets 4 | . . . 3 1 Max Gunslinging Chain 1 | . . . 1 1 Shots Hit Robots 75 | . 13 11 15 36 Core Hits 38 | . 4 5 13 16 Critical Kills 1 | . . . . 1 Critical Parts Destroyed . | . . . . . Critical Strikes 1 | . . . . 1 Destroy 1 | . . . . 1 Melee Attacks 2 | . . . . 2 Impact . | . . . . . Slashing . | . . . . . Piercing . | . . . . . Sneak Attacks 2 | . . . . 2 Combat Hostiles . | . . . . . Follow-up Attacks . | . . . . . Damage Inflicted 1276 | . 254 209 274 539 Guns 1133 | . 197 142 255 539 Cannons . | . . . . . Explosions 121 | . 57 64 . . Melee . | . . . . . Ramming 22 | . . 3 19 . Kinetic 934 | . 92 48 255 539 Thermal 121 | . 57 64 . . Explosive . | . . . . . Electromagnetic 199 | . 105 94 . . Impact . | . . . . . Slashing . | . . . . . Piercing . | . . . . . Highest Corruption . | . . . . . Average Corruption . | . . . . . Corruption Purged . | . . . . . Corruption Blocked . | . . . . . Overload Shots . | . . . . . Overflow Damage . | . . . . . Projectiles . | . . . . . Explosions . | . . . . . Melee . | . . . . . Knockbacks . | . . . . . Impact . | . . . . . Kinetic . | . . . . . Secondary . | . . . . . Self-Inflicted Damage . | . . . . . Shots . | . . . . . Rammed 1 | . . . . 1 Targets Rammed 7 | . . 1 5 1 Kicked 6 | . . 1 5 . Crushed . | . . . . . Highest Temperature 251 | . 45 9 48 251 Average Temperature 60 | . 31 4 13 94 Received Heat Transfer 579 | . 75 54 27 423 Siege Activations . | . . . . . Martial Activations . | . . . . . Shielding Activations . | . . . . . Robots Disrupted . | . . . . . Combat Hostiles . | . . . . . Robots Corrupted . | . . . . . Combat Hostiles . | . . . . . Parts Fried . | . . . . . Impact Corruptions . | . . . . . Robots Melted . | . . . . . Combat Hostiles . | . . . . . Parts Melted . | . . . . . Heat Transferred 200 | . 100 100 . . Parts Sabotaged . | . . . . . Parts Stolen . | . . . . . Parts Stripped . | . . . . . Power Chain Reactions 2 | . 1 1 . . Alert | -11 -10 -9 -9 -8 ------- Run | Yrd Mat Mat Min Mat Maximum Alert Level . | . . . . . Low Security (%) 100 | 100 100 100 100 100 Level 1 . | . . . . . Level 2 . | . . . . . Level 3 . | . . . . . Level 4 . | . . . . . Level 5 . | . . . . . High Security . | . . . . . Max Security . | . . . . . Peak Influence 135 | . 42 66 135 77 Initial 16 | . . 4 . 16 Average 24 | . 8 17 53 15 Influence Increases 630 | . 52 100 265 213 Destroy 0b10 Robot/C 500 | . 40 80 220 160 Destroy 0b10 Robot/NC 5 | . . . . 5 Destroy Leader 80 | . 10 10 30 30 Successful Hack 7 | . . 4 . 3 Disable Machine 30 | . . . 15 15 Destroy Structure 8 | . 2 6 . . Influence Decreases 608 | . 40 112 223 233 Entered New Map 34 | . . 8 . 26 Time Decay 504 | . 40 104 223 137 Lost Part 70 | . . . . 70 Squads Dispatched 3 | . 1 1 . 1 Investigation 3 | . 1 1 . 1 Extermination . | . . . . . Reinforcement . | . . . . . Assault . | . . . . . Garrison . | . . . . . Intercept . | . . . . . Searches Triggered . | . . . . . Construction Impeded . | . . . . . Haulers Reinforced . | . . . . . Active Scanning Responses . | . . . . . Cargo Convoy Interrupts . | . . . . . Stealth | -11 -10 -9 -9 -8 --------- Run | Yrd Mat Mat Min Mat Distress Signals 3 | . 1 . . 2 Communications Jammed . | . . . . . Distress Signals . | . . . . . Times Spotted 35 | . 4 5 13 13 Peak Tracking Total 5 | . 2 2 4 5 Tactical Retreats . | . . . . . Traps | -11 -10 -9 -9 -8 ------- Run | Yrd Mat Mat Min Mat Traps Triggered 2 | . 1 1 . . Indirectly . | . . . . . Trap Hack Attempts . | . . . . . Triggered . | . . . . . Disarmed . | . . . . . Reprogrammed . | . . . . . Reused . | . . . . . Traps Extracted . | . . . . . Installed . | . . . . . Triggered . | . . . . . Machines | -11 -10 -9 -9 -8 ---------- Run | Yrd Mat Mat Min Mat Machines Disabled 2 | . . . 1 1 Max in Single Turn 1 | . . . 1 1 Machines Repaired . | . . . . . Machines Dismantled . | . . . . . Machines Sabotaged . | . . . . . Overloaded Fab Kills . | . . . . . Hacking | -11 -10 -9 -9 -8 --------- Run | Yrd Mat Mat Min Mat Machines Accessed 6 | . 2 2 . 2 Terminals 6 | . 2 2 . 2 Fabricators . | . . . . . Repair Stations . | . . . . . Recycling Units . | . . . . . Scanalyzers . | . . . . . Garrison Access . | . . . . . Total Hacks 11 | . 2 5 . 4 Successful 7 | . . 3 . 4 Failed 4 | . 2 2 . . Catastrophic . | . . . . . Database Lockouts . | . . . . . Manual . | . . . . . Terminals 11 | . 2 5 . 4 Fabricators . | . . . . . Repair Stations . | . . . . . Recycling Units . | . . . . . Scanalyzers . | . . . . . Garrison Access . | . . . . . Terminal Hacks 7 | . . 3 . 4 Record 2 | . . . . 2 Alert Level 2 | . . 1 . 1 Locate Traps 1 | . . 1 . . Maintenance Status 1 | . . 1 . . Zone Layout 1 | . . . . 1 Fabricator Hacks . | . . . . . Repair Station Hacks . | . . . . . Recycling Unit Hacks . | . . . . . Scanalyzer . | . . . . . Garrison Access Hacks . | . . . . . Unauthorized Hacks . | . . . . . Terminals . | . . . . . Fabricators . | . . . . . Repair Stations . | . . . . . Recycling Units . | . . . . . Scanalyzers . | . . . . . Garrison Access . | . . . . . Data Cores Recovered . | . . . . . Used . | . . . . . Hacking Detections 2 | . . . . 2 Full Trace Events 1 | . . . . 1 Feedback Events . | . . . . . Feedback Blocked . | . . . . . Robot Schematics Acquired . | . . . . . Robots Built . | . . . . . Authchips . | . . . . . Time . | . . . . . Total Robot Build Rating . | . . . . . Part Schematics Acquired . | . . . . . Parts Built . | . . . . . Authchips . | . . . . . Time . | . . . . . Total Part Build Rating . | . . . . . Part Studies Acquired . | . . . . . Parts Repaired . | . . . . . Time . | . . . . . Parts Recycled . | . . . . . Recycled Matter . | . . . . . Retrieved Matter . | . . . . . Retrieved Components . | . . . . . Parts Scanalyzed . | . . . . . Part Schematics Acquired . | . . . . . Parts Damaged . | . . . . . Bothacking | -11 -10 -9 -9 -8 ------------ Run | Yrd Mat Mat Min Mat Used RIF Installer . | . . . . . Robots Hacked 1 | . . . . 1 Non-combat 1 | . . . . 1 Combat . | . . . . . Robot Hacks Applied 2 | . . . . 2 no_distress 1 | . . . . 1 find_station 1 | . . . . 1 Relay Couplers Released . | . . . . . Fabnet Peak Effective % . | . . . . . Robots Rewired . | . . . . . Allies Hacked . | . . . . . Hacks Repelled . | . . . . . Allies | -11 -10 -9 -9 -8 -------- Run | Yrd Mat Mat Min Mat Total Allies . | . . . . . Largest Group . | . . . . . Highest-Rated Group . | . . . . . Highest-Rated Ally . | . . . . . Total Orders . | . . . . . Ally Attacks . | . . . . . Total Damage . | . . . . . Kills . | . . . . . Allies Corrupted . | . . . . . Allies Melted . | . . . . . Intel | -11 -10 -9 -9 -8 ------- Run | Yrd Mat Mat Min Mat Active Infowar (turns) . | . . . . . Robot Analysis Total . | . . . . . Derelict Logs Recovered 1 | . . . 1 . Drone Launches . | . . . . . Drone Recoveries . | . . . . . Exploration | -11 -10 -9 -9 -8 ------------- Run | Yrd Mat Mat Min Mat Turns Passed 2110 | 86 281 403 589 751 Spaces Moved 1000 | 64 209 299 301 127 Core 8 | 8 . . . . Treads . | . . . . . Legs 865 | 56 209 299 301 . Wheels . | . . . . . Hover . | . . . . . Flight 127 | . . . . 127 Fastest Speed 50 | 50 120 120 120 511 Average Speed 186 | 111 120 120 176 514 Slowest Speed 674 | 120 120 120 330 674 Overloaded Moves . | . . . . . Propulsion Burnouts . | . . . . . Robots Hopped . | . . . . . Potential Cave-ins . | . . . . . Cave-ins Triggered . | . . . . . Exploration Rate (%) 23 | 4 38 20 43 11 Regions Visited 4 Branch Regions 1 Pre-discovered Areas . | . . . . . Known Exits Taken . | . . . . . Unknown Exits Taken 4 | 1 1 1 1 . Scrap Searched 1 | . . . 1 . Spaces Dug . | . . . . . Terrain Destroyed 7 | . 2 5 . . Melee . | . . . . . Projectile . | . . . . . AOE 7 | . 2 5 . . Terrain Rammed . | . . . . . Walls Destroyed . | . . . . . Machines Disabled . | . . . . . Actions | -11 -10 -9 -9 -8 --------- Run | Yrd Mat Mat Min Mat Total 1150 | 78 221 327 338 186 Wait . | . . . . . Move 996 | 63 208 298 300 127 Hop . | . . . . . Pick Up 32 | 9 3 7 7 6 Fast Attach 4 | 1 . 3 . . Attach 18 | 5 1 2 1 9 Detach 1 | . . . . 1 Swap 8 | . . 1 2 5 Drop 19 | . . 6 6 7 Fire 63 | . 9 9 17 28 Melee 2 | . . . . 2 Ram 1 | . . . . 1 Kick 6 | . . 1 5 . Crush . | . . . . . Escape Stasis . | . . . . . Rewire . | . . . . . Trap . | . . . . . Miscellaneous . | . . . . . Route ------- -11/Scrapyard -10/Materials -9/Materials -9/Mines -8/Materials History --------- Turn | Location | Event 4 | -11/Scrapyard | Discovered new exit (range 16) 87 | -11/Scrapyard | Entered Materials 88 | -10/Materials | Met a group of wandering Federalists 306 | -10/Materials | Build established: Mutant 339 | -10/Materials | Discovered new exit (range 10) 368 | -10/Materials | Entered another Materials area 368 | -9/Materials | Evolved 2 slots: Propulsion x1, Utility x1 733 | -9/Materials | Discovered new exit (range 15) 771 | -9/Materials | Entered Mines 1065 | -9/Mines | Found DCF Scrap (10 items) 1307 | -9/Mines | Learned Materials interactive machine intel 1330 | -9/Mines | Discovered new exit (range 5) 1360 | -9/Mines | Entered Materials 1360 | -8/Materials | Evolved 2 slots: Power x1, Propulsion x1 1361 | -8/Materials | Loaded intel: 19 interactive machine locations 1656 | -8/Materials | Build established: Scavenger-Mutant 2111 | -8/Materials | Self-destructed Last Messages --------------- K-01 Serf collects debris. R-06 Scavenger collects Lgt. Ion Engine. K-01 Serf cleans the Terminal. R-06 Scavenger collects Flight Unit. Acquired Lgt. Assault Rifle. K-01 Serf cleans the Terminal. Dropped Enh. Autogun. Critical hit (Burn: +37). R-06 Scavenger collects Lgt. Assault Rifle. Terminal disabled. Flight Unit destroyed. K-01 Serf collects debris. Critical hit (Burn: +37). K-01 Serf collects debris. Flight Unit destroyed. Critical hit (Burn: +37). K-01 Serf collects debris. R-06 Scavenger collects Lgt. Treads. Lgt. Assault Rifle destroyed. R-06 Scavenger collects Lgt. Treads. Map ----- +----------------------------------------------------+ | ???????????????# """ """ #???????????????????????? | | ?????????####### """ """ #???????????????????????? | | ########## # """ """ #???????????????????????? | | # #???????????????????????? | | T + #???????????????????????? | | # #???????????????????????? | | ########## # #???????????????????????? | | ####### ## #???????????????????????? | | # # #####+######???????????????????????? | | # """ # #???# #????????????????????????????? | | # """ + ##### #########????????????????????? | | # """ # [^^#????????????????????? | | "" # """ # ^^ #????????????????????? | | "" # """ # #????????????????????? | | "" # ######## ####^^ #????????????????????? | | ###+###??????# #??# #????????????????????? | | #####?# #????????# #??# #????????????????????? | | ??????# #????????# #??# #??????????????T?????? | | ??????# #????????# #??# #????????????????????? | | ??????# #????????# [ #??# +????????????????????? | | ????### ###?????## ##?# #????????????????????? | | ????# ####### #?#! #????????????????????? | | """# T #?#!* #????????????????????? | | + T "" #?# #????????????????????? | | # #?#*[ ###k##???????????????? | | ????# !####### #?#@%%gg ????????? | | ????#######?????#######?# k g ????????? | | ????????????????????????# k" a????????? | | ????????????????????????# "T #####?????????? | | ????????????????????????# "" #?????????????? | | ????????????????????????# #?????????????? | | ????????????????????????# !! + ????????????? | | ????????????????????????# ! ! # ???????????? | | ????????????????????????+ #? ???????????? | | ????????????????????????# w #?????????????? | | ????????????????????????# #### ???????????????? | | ????????????????????????# r#??? ???????????????? | | ????????????????????????#*% #????????????????????? | | ????????????????????????? [ #????????????????????? | | ????????????????????????? #????????????????????? | | ?????????????????????????ku ?????????????????????? | | ?????????????????????????????????????????????????? | | ?????????????????????????????????????????????????? | | ?????????????????????????????????????????????????? | | ?????????????????????????????????????????????????? | | ?????????????????????????????????????????????????? | | ?????????????????????????????????????????????????? | | ?????????????????????????????????????????????????? | | ???????????????"???????????????????""????????????? | | ???????????????T???????????????????Y"????????????? | +----------------------------------------------------+ Best States ------------- Heat Dissipation 31 Energy Generation 17 Energy Capacity 415 Matter Stores 300 Matter Capacity 300 Sight Range 16 Terrain Scan Density 10 Evasion (%) 55 Targeting Accuracy 8 Target Analysis 5 Item Schematics ----------------- None Robot Schematics ------------------ None Fabricated ------------ Nothing Repaired ---------- Nothing Studied --------- None Alien Tech Used ----------------- None Achievements -------------- None Challenges ------------ None Game ------ Seed HybridKineticDoublenader Manual? 0 Play Time 00:20:25 Cumulative 1.7 hours Start 2026.01.29 @ 22:10:33 End 2026.01.29 @ 22:28:36 Sessions 1 Manual Loads 0 Difficulty Rogue Special Mode None Game No. 7 Rogue 4 Adventurer 0 Explorer 3 Win Type - Total 0 Types 0/0/0/0/0/0/0/0/0/0 Lore% 1 Gallery% 5 Achievement% 6 Wizard Run 0 Options --------- Layout 0 ASCII 0 Keyboard 0 Movement Arrows Keybinds 0 Fullscreen 1 Font 24/Smallcaps Map View 76x50 Zoom Use 0% Tactical HUD 0 Map Filters NONE Filters NONE Steam 1 RUN: d2133000-566d-4c3c-9da7-c4eee21a664a